Cogmind - Beta 15 @@@ ROGUE MODE // 2025.07.25 @ 23:31:31 Player: phil_doe Result: Destroyed by G-47 Trooper with Particle Gun Performance ------------- Evolutions (1) 500 Regions Visited (2) 400 Robots Destroyed (14) 70 Value Destroyed (392) 392 Prototype IDs (0) 0 Alien Tech Used (0) 0 Bonus (0) 0 TOTAL SCORE: 1362 Bonus ------- None Cogmind --------- Core Integrity 0/400 Matter 290/300 Energy 81/100 System Corruption 0% Temperature Cool (9) Movement Core (300) Ox5 Location -9/Materials Parts ------- > --- POWER (1) -------- (None) > --- PROPULSION (3) --- (None) > --- UTILITY (3) ------ Medium Storage Unit Field Recycling Unit > --- WEAPON (2) ------- (None) > --- INVENTORY (10) --- Light Ion Engine Improved Ion Engine Wheel Reflective Plating Hardlight Generator Peak State ------------ > --- POWER ------------ Light Ion Engine > --- PROPULSION ------- Aluminum Leg Aluminum Leg > --- UTILITY ---------- Medium Storage Unit Hardlight Generator > --- WEAPON ----------- Light Assault Rifle Light Assault Rifle > --- INVENTORY -------- Light Ion Engine Wheel Reflective Plating Field Recycling Unit Datajack [Rating: 9] Favorites ----------- Power Light Ion Engine Engine Light Ion Engine Propulsion Wheel Leg Aluminum Leg Wheel Wheel Utility Medium Storage Unit Device Hardlight Generator Storage Medium Storage Unit Weapon Light Assault Rifle Energy Gun Medium Laser Ballistic Gun Light Assault Rifle Special Melee Weapon Datajack Build | -11 -10 -9 ------- Run | Yrd Mat Mat Slots Evolved 2 | . . 2 Power . | . . . Propulsion 1 | . . 1 Utility 1 | . . 1 Weapon . | . . . Parts Attached 15 | 7 2 6 Power 2 | 1 . 1 Engine 2 | 1 . 1 Core . | . . . Reactor . | . . . Propulsion 5 | 4 . 1 Treads . | . . . Leg 3 | 2 . 1 Wheel 2 | 2 . . Hover . | . . . Flight . | . . . Utility 3 | . . 3 Device 2 | . . 2 Storage 1 | . . 1 Processor . | . . . Hackware . | . . . Protection . | . . . Artifact . | . . . Weapon 5 | 2 2 1 Energy Gun 2 | 2 . . Energy Cannon . | . . . Ballistic Gun 2 | . 2 . Ballistic Cannon . | . . . Launcher . | . . . Special Weapon . | . . . Impact Weapon . | . . . Slashing Weapon . | . . . Piercing Weapon . | . . . Special Melee Weapon 1 | . . 1 Unidentified Prototypes . | . . . Parts Lost 7 | . . 7 Power 1 | . . 1 Propulsion 3 | . . 3 Utility . | . . . Weapon 3 | . . 3 Highest Loss Streak 7 | . . 7 To Critical Strikes . | . . . Average Backups 4 | 1 3 5 Power . | . . 1 Propulsion 1 | 1 2 1 Utility 1 | . . 1 Weapon . | . . . Tool/Special . | . . . Unused Backups 3 | . 1 2 Power 1 | . . 1 Propulsion . | . . . Utility 2 | . 1 1 Weapon . | . . . Tool/Special . | . . . Average Slot Usage (%) 64 | . 71 59 Engine 10 | . 14 7 Leg 11 | . . 20 Wheel 12 | . 28 . Storage 5 | . . 10 Energy Gun 4 | . 10 . Ballistic Gun 17 | . 17 18 Peak Build Rating 9 | 5 5 9 Average Rating 5 | 3 4 6 On Entrance 3 | . 5 5 Naked Turns . | . . . Heaviest Build 20 | 6 6 20 Greatest Support 30 | 20 20 30 Greatest Overweight (x) 3 | . . 3 Average Overweight (x) . | . . . Largest Inventory Capacity 10 | 5 5 10 Average Capacity 7 | 5 5 9 Most Carried 7 | 2 5 7 Average Carried 4 | 1 3 5 Final Capacity 10 | 5 5 10 Final Carried 5 | 2 4 5 Class Distribution -------------------- 89% | Mutant 10% | Scavenger-Mutant Dominant Class ---------------- Mutant | -10/Materials Mutant | -9/Materials Resources | -11 -10 -9 ----------- Run | Yrd Mat Mat Matter Collected 468 | 290 52 126 Remotely . | . . . Salvage Created 459 | 39 122 298 Parts 28 | 1 9 18 Haulers Intercepted . | . . . Recyclers Shooed . | . . . Parts Field Recycled . | . . . Retrieved Matter . | . . . Parts Self-Destructed . | . . . Prevented . | . . . Kills | -11 -10 -9 ------- Run | Yrd Mat Mat Combat Hostiles Destroyed 12 | 1 5 6 Guns 12 | 1 5 6 Classes Destroyed 5 | 1 2 2 Watcher 2 | . 1 1 Swarmer 3 | . 3 . Grunt 6 | 1 2 3 Brawler 1 | . . 1 Sentry 2 | . . 2 Best Kill Streak 4 | 1 3 4 Combat Bots Only 4 | 1 3 4 Max Kills in Single Turn 1 | 1 1 1 Gunslinging . | . . . Exploded . | . . . Melee . | . . . Uniques/NPCs Destroyed . | . . . Combat | -11 -10 -9 -------- Run | Yrd Mat Mat Hostile Shots Fired 142 | 3 37 102 Missed 38 | 1 8 29 Hits 104 | 2 29 73 Projectile 104 | 2 29 73 Critical Strikes 2 | . . 2 Damage Taken 1274 | 23 264 987 Core 510 | 12 88 410 Absorbed by Shields . | . . . Regen/Repaired (Parts) 27 | . . 27 Core Remaining (%) 77 | 95 60 . Volleys Fired 83 | 3 28 52 Largest 2 | 2 2 2 Hottest 90 | 90 90 40 Shots Fired 149 | 6 57 86 Gun 149 | 6 57 86 Cannon . | . . . Launcher . | . . . Special . | . . . Kinetic 118 | . 32 86 Thermal 31 | 6 25 . Explosive . | . . . Electromagnetic . | . . . Robot Hit Streak 11 | 3 11 9 Robot Miss Streak 5 | 1 4 5 Penetration Max . | . . . Secondary Targets 1 | . 1 . Max Gunslinging Chain 1 | . 1 . Shots Hit Robots 73 | 4 24 45 Core Hits 35 | 2 9 24 Critical Kills . | . . . Critical Parts Destroyed . | . . . Critical Strikes 2 | 1 1 . Burn 2 | 1 1 . Melee Attacks 1 | . . 1 Impact . | . . . Slashing . | . . . Piercing . | . . . Sneak Attacks . | . . . Combat Hostiles . | . . . Follow-up Attacks . | . . . Damage Inflicted 634 | 44 218 372 Guns 634 | 44 218 372 Cannons . | . . . Explosions . | . . . Melee . | . . . Ramming . | . . . Kinetic 509 | . 137 372 Thermal 125 | 44 81 . Explosive . | . . . Electromagnetic . | . . . Impact . | . . . Slashing . | . . . Piercing . | . . . Highest Corruption 4 | . 4 . Average Corruption 3 | . 3 . Corruption Purged . | . . . Corruption Blocked . | . . . Effects 7 | . 7 . Message Errors 1 | . 1 . Heat Flow Errors 2 | . 2 . Data Loss (minor) 2 | . 2 . Data Loss (major) 1 | . 1 . Misfires 1 | . 1 . Overload Shots . | . . . Overflow Damage . | . . . Projectiles . | . . . Explosions . | . . . Melee . | . . . Knockbacks . | . . . Impact . | . . . Kinetic . | . . . Secondary . | . . . Self-Inflicted Damage . | . . . Shots . | . . . Rammed . | . . . Targets Rammed . | . . . Kicked . | . . . Crushed . | . . . Highest Temperature 351 | 102 351 12 Average Temperature 65 | 54 83 4 Received Heat Transfer 636 | 12 66 558 Siege Activations . | . . . Martial Activations . | . . . Shielding Activations . | . . . Robots Disrupted . | . . . Combat Hostiles . | . . . Robots Corrupted . | . . . Combat Hostiles . | . . . Parts Fried . | . . . Impact Corruptions . | . . . Robots Melted . | . . . Combat Hostiles . | . . . Parts Melted 3 | 2 1 . Heat Transferred 483 | 186 297 . Parts Sabotaged . | . . . Parts Stolen . | . . . Parts Stripped . | . . . Power Chain Reactions . | . . . Alert | -11 -10 -9 ------- Run | Yrd Mat Mat Maximum Alert Level . | . . . Low Security (%) 100 | 100 100 100 Level 1 . | . . . Level 2 . | . . . Level 3 . | . . . Level 4 . | . . . Level 5 . | . . . High Security . | . . . Max Security . | . . . Peak Influence 95 | 20 70 95 Initial 5 | . . 5 Average 24 | 2 26 28 Influence Increases 350 | 20 142 188 Destroy 0b10 Robot/C 240 | 20 100 120 Destroy 0b10 Robot/NC 10 | . 5 5 Destroy Leader 54 | . 22 32 Successful Hack 1 | . . 1 Partial Spotted 15 | . 15 . Lose Combat Pursuer 30 | . . 30 Influence Decreases 343 | 20 127 196 Entered New Map 10 | . . 10 Time Decay 268 | 20 127 121 Lost Part 65 | . . 65 Squads Dispatched 2 | . 1 1 Investigation 1 | . 1 . Extermination . | . . . Reinforcement 1 | . . 1 Assault . | . . . Garrison . | . . . Intercept . | . . . Searches Triggered . | . . . Construction Impeded . | . . . Haulers Reinforced . | . . . Active Scanning Responses . | . . . Cargo Convoy Interrupts . | . . . Stealth | -11 -10 -9 --------- Run | Yrd Mat Mat Distress Signals 2 | . . 2 Communications Jammed . | . . . Distress Signals . | . . . Times Spotted 28 | 1 8 19 Peak Tracking Total 8 | 1 3 8 Tactical Retreats 2 | . . 2 Traps | -11 -10 -9 ------- Run | Yrd Mat Mat Traps Triggered 3 | . 3 . Indirectly . | . . . Trap Hack Attempts . | . . . Triggered . | . . . Disarmed . | . . . Reprogrammed . | . . . Reused . | . . . Traps Extracted . | . . . Installed . | . . . Triggered . | . . . Machines | -11 -10 -9 ---------- Run | Yrd Mat Mat Machines Disabled . | . . . Max in Single Turn . | . . . Machines Repaired . | . . . Machines Dismantled . | . . . Machines Sabotaged . | . . . Overloaded Fab Kills . | . . . Hacking | -11 -10 -9 --------- Run | Yrd Mat Mat Machines Accessed 6 | . 3 3 Terminals 4 | . 2 2 Fabricators . | . . . Repair Stations 1 | . . 1 Recycling Units 1 | . 1 . Scanalyzers . | . . . Garrison Access . | . . . Total Hacks 19 | . 7 12 Successful 12 | . 2 10 Failed 7 | . 5 2 Catastrophic 2 | . 2 . Database Lockouts . | . . . Manual 1 | . . 1 Terminals 9 | . 5 4 Fabricators . | . . . Repair Stations 8 | . . 8 Recycling Units 2 | . 2 . Scanalyzers . | . . . Garrison Access . | . . . Terminal Hacks 4 | . . 4 Record 2 | . . 2 Alert Level 1 | . . 1 Hauler Manifests 1 | . . 1 Fabricator Hacks . | . . . Repair Station Hacks 6 | . . 6 Scan Component 3 | . . 3 Repair 3 | . . 3 Recycling Unit Hacks 2 | . 2 . Recycle Component 1 | . 1 . Process 1 | . 1 . Scanalyzer . | . . . Garrison Access Hacks . | . . . Unauthorized Hacks . | . . . Terminals . | . . . Fabricators . | . . . Repair Stations . | . . . Recycling Units . | . . . Scanalyzers . | . . . Garrison Access . | . . . Data Cores Recovered . | . . . Used . | . . . Hacking Detections 5 | . 2 3 Full Trace Events . | . . . Feedback Events . | . . . Feedback Blocked . | . . . Robot Schematics Acquired . | . . . Robots Built . | . . . Authchips . | . . . Time . | . . . Total Robot Build Rating . | . . . Part Schematics Acquired . | . . . Parts Built . | . . . Authchips . | . . . Time . | . . . Total Part Build Rating . | . . . Parts Repaired 3 | . . 3 Time 78 | . . 78 Parts Recycled 1 | . 1 . Recycled Matter 265 | . 265 . Retrieved Matter . | . . . Retrieved Components . | . . . Parts Scanalyzed . | . . . Part Schematics Acquired . | . . . Parts Damaged . | . . . Bothacking | -11 -10 -9 ------------ Run | Yrd Mat Mat Used RIF Installer . | . . . Robots Hacked . | . . . Non-combat . | . . . Combat . | . . . Robot Hacks Applied . | . . . Relay Couplers Released . | . . . Fabnet Peak Effective % . | . . . Robots Rewired . | . . . Allies Hacked . | . . . Hacks Repelled . | . . . Allies | -11 -10 -9 -------- Run | Yrd Mat Mat Total Allies . | . . . Largest Group . | . . . Highest-Rated Group . | . . . Highest-Rated Ally . | . . . Total Orders . | . . . Ally Attacks . | . . . Total Damage . | . . . Kills . | . . . Allies Corrupted . | . . . Allies Melted . | . . . Intel | -11 -10 -9 ------- Run | Yrd Mat Mat Active Infowar (turns) . | . . . Robot Analysis Total . | . . . Derelict Logs Recovered . | . . . Drone Launches . | . . . Drone Recoveries . | . . . Exploration | -11 -10 -9 ------------- Run | Yrd Mat Mat Turns Passed 911 | 117 346 448 Spaces Moved 660 | 96 326 238 Core 41 | 20 . 21 Treads . | . . . Legs 204 | . . 204 Wheels 415 | 76 326 13 Hover . | . . . Flight . | . . . Fastest Speed 50 | 50 80 80 Average Speed 95 | 73 80 126 Slowest Speed 200 | 80 80 200 Overloaded Moves . | . . . Propulsion Burnouts . | . . . Robots Hopped . | . . . Potential Cave-ins . | . . . Cave-ins Triggered . | . . . Exploration Rate (%) 22 | 7 35 24 Regions Visited 2 Branch Regions . Pre-discovered Areas . | . . . Known Exits Taken . | . . . Unknown Exits Taken 2 | 1 1 . Scrap Searched . | . . . Spaces Dug . | . . . Terrain Destroyed . | . . . Melee . | . . . Projectile . | . . . AOE . | . . . Terrain Rammed . | . . . Walls Destroyed . | . . . Machines Disabled . | . . . Actions | -11 -10 -9 --------- Run | Yrd Mat Mat Total 810 | 131 362 317 Wait 31 | 22 . 9 Move 658 | 95 325 238 Hop . | . . . Pick Up 13 | 2 5 6 Fast Attach 7 | 5 . 2 Attach 8 | . 2 6 Detach 3 | . . 3 Swap 4 | 4 . . Drop 2 | . 2 . Fire 83 | 3 28 52 Melee 1 | . . 1 Ram . | . . . Kick . | . . . Crush . | . . . Escape Stasis . | . . . Rewire . | . . . Trap . | . . . Miscellaneous . | . . . Route ------- -11/Scrapyard -10/Materials (discovered 2 exits: *Mat / [*Min]) -9/Materials (discovered 1 exit: [*Sto]) History --------- Turn | Location | Event 2 | -11/Scrapyard | Met Revision 17 63 | -11/Scrapyard | Discovered new exit (range 8) 118 | -11/Scrapyard | Entered Materials 137 | -10/Materials | Discovered new exit (range 16) 303 | -10/Materials | Build established: Mutant 397 | -10/Materials | Discovered new exit (range 10) 464 | -10/Materials | Entered another Materials area 464 | -9/Materials | Evolved 2 slots: Propulsion x1, Utility x1 592 | -9/Materials | Repaired Lgt. Ion Engine 592 | -9/Materials | Repaired Wheel 618 | -9/Materials | Repaired Wheel? 803 | -9/Materials | Discovered new exit (range 16) 875 | -9/Materials | Core integrity fell below 50% 903 | -9/Materials | Lost 7 parts (1p3n3w) 906 | -9/Materials | Core integrity fell below 20% 912 | -9/Materials | Destroyed by G-47 Trooper with Particle Gun Last Messages --------------- R-06 Scavenger collects Wheel. Aluminum Leg destroyed. M-13 Machinist destroyed. Acquired 10 matter. Critical hit (Burn: +37). Datajack destroyed. R-06 Scavenger collects Wheel. K-01 Serf cleans the Terminal. K-01 Serf destroyed. R-06 Scavenger collects Hvy. Assault Rifle. K-01 Serf collects debris. Critical hit (Burn: +37). O-16 Technician: "IFF HANDSHAKE FAILED. SECURING TERMINAL." K-01 Serf collects debris. R-06 Scavenger collects Wheel. K-01 Serf collects debris. O-16 Technician uses terminal to summon reinforcements. ALERT: Hostiles spotted, dispatching reinforcements to Terminal M012. O-16 Technician locks terminal. K-01 Serf collects debris. Map ----- +----------------------------------------------------+ | ?????????????????????????????????????????????????? | | ?????????????????????????????????????????????????? | | ?????????????????????????????????????????????????? | | ?????????????????? ????????????????????????????? | | ??????????????#??# ?????????????????? ???????? | | ????????###### #?# #?????????????????? ???????? | | ????????# ## #?????????????????? ???????? | | ????????# [ ## #?????????????????? ???????? | | ????????+ / #?????????????????? ???????? | | ????????# ## #??????????????????# ???????? | | ????????# ## #??????????????????# #??????? | | ????????# ## #??????????????????# #??????? | | ????????# ## #??????????????????# #??????? | | ????????# ## #??????????????????# #??????? | | ?????????? ## #??????????????????# #???#### | | ??????????? ## #????????????????### ##### | | ?##????????? ## ##???#######?????# # | | ?# #######/## #???# ####### # | | ?# % % #???# / # | | ?# < % T #???# + | | ?# % #???# #"" | | ?# ########## #???# ###+### #"T | | ?## ???????????##g ##???## ##? ?# % #"" | | ?????????????????#ggg####### #?? ?##%###### | | ?????????????????# g #?# ?#*#????#### | | ?????????????????# @ #?# ! ?# #???????? | | ?????????????????# #?# ## #???????? | | ?????????????????# ####### #?# ## #???????? | | ?????????????????# #?????# #?####### #???????? | | ?????????????????# #?????# #???????# #???????? | | ?????????????????# #?????# +???????#*#???????? | | ?????????????????# #?????# #???????#%#???????? | | ?????????????????# #?????/ +???????# #???????? | | ?????????????????# #?????# #???????# #???????? | | ????????????????? #?????# #???????# #???????? | | ????????????????? #?????# #???????#!#???????? | | ???????????????? #????# ########%######??? | | ????????????????##+###????# !!#??? | | ??????????????????????????? " !#??? | | ??????????????????????????# !!#??? | | ??????????????????????????# ####### !!#??? | | ??????????????????????????###?????????# !!#??? | | ??????????????????????????????????????# !#??? | | ??????????????????????????????????????# #####??? | | ??????????????????????????????????????# #??????? | | ???????????????????????????????######## #??????? | | ???????????????????????????????# # #??????? | | ???????????????????????????????# """ + #??????? | | ???????????????????????????????# R" # #??????? | | ???????????????????????????????# """ # #??????? | +----------------------------------------------------+ Best States ------------- Heat Dissipation 28 Energy Generation 10 Energy Capacity 125 Matter Stores 300 Matter Capacity 300 Sight Range 16 Terrain Scan Density 10 Evasion (%) 55 Item Schematics ----------------- None Robot Schematics ------------------ None Fabricated ------------ Nothing Repaired ---------- Wheel | 32% | -9/Materials Alien Tech Used ----------------- None Achievements -------------- Shopping List Challenges ------------ None Game ------ Seed CoreChainCrosscalibrator Manual? 0 Play Time 00:26:27 Cumulative 2.1 hours Start 2025.07.25 @ 23:03:35 End 2025.07.25 @ 23:31:31 Sessions 1 Manual Loads 0 Difficulty Rogue Special Mode None Game No. 2 Rogue 2 Adventurer 0 Explorer 0 Win Type - Total 0 Types 0/0/0/0/0/0/0/0/0/0 Lore% 0 Gallery% 3 Achievement% 5 Wizard Run 0 Options --------- Layout 0 ASCII 0 Keyboard 1 Movement Arrows Keybinds 0 Fullscreen 2 Font 24/Smallcaps Map View 76x50 Zoom Use 0% Tactical HUD 0 Map Filters NONE Filters NONE Steam 1 RUN: 0e56cce7-87fd-470c-bfb1-eb862d0c6dff